fUST/lending_fUST_20250916
["ID","MTS","AMOUNT","RATE_DAILY","PERIOD"]
[385778056,1758033052591,-480.0,0.00023287,3]
[385778057,1758033052600,-480.0,0.00023287,3]
[385778058,1758033052609,-480.0,0.00023287,3]
[385778059,1758033052619,-480.0,0.00023287,3]
[385778060,1758033052628,-480.0,0.00023287,3]
[385778061,1758033052638,-480.0,0.00023287,3]
[385778062,1758033052647,-480.0,0.00023287,3]
[385778063,1758033052656,-761.92,0.00023287,3]
[385778064,1758033052665,-480.0,0.00023287,3]
[385778065,1758033052762,-480.0,0.00023287,3]
[385778066,1758033052772,-480.0,0.00023287,3]
[385778067,1758033052782,-480.0,0.00023287,3]
[385778068,1758033052791,-480.0,0.00023287,3]
[385778069,1758033052800,-276.36766986,0.00023287,3]
[385778070,1758033052810,-480.0,0.00023287,3]
[385778071,1758033052819,-480.0,0.00023287,3]
[385778072,1758033052830,-480.0,0.00023287,3]
[385778073,1758033052839,-480.0,0.00023287,3]
[385778074,1758033052849,-480.0,0.00023287,3]
[385778075,1758033052858,-480.0,0.00023287,3]
[385778076,1758033052868,-480.0,0.00023287,3]
[385778077,1758033052877,-480.0,0.00023287,3]
[385778078,1758033052887,-480.0,0.00023287,3]
[385778079,1758033052897,-154.738351,0.00023287,7]
[385778080,1758033052907,-151.0,0.00023287,7]
[385778081,1758033052916,-480.0,0.00023287,3]
[385778082,1758033052926,-480.0,0.00023287,3]
[385778083,1758033052935,-151.0,0.00023287,7]
[385778084,1758033052946,-480.0,0.00023287,3]
[385778085,1758033052954,-480.0,0.00023287,3]
[385778086,1758033052963,-480.0,0.00023287,3]
[385778087,1758033052971,-480.0,0.00023287,3]
[385778088,1758033052979,-480.0,0.00023287,3]
[385778089,1758033052988,-480.0,0.00023287,3]
[385778090,1758033052997,-151.0,0.00023287,7]
[385778091,1758033053007,-151.0,0.00023287,7]
[385778092,1758033053016,-151.0,0.00023287,7]
[385778093,1758033053026,-480.0,0.00023287,3]
[385778094,1758033053037,-480.0,0.00023287,3]
[385778095,1758033053046,-480.0,0.00023287,3]
[385778096,1758033053056,-480.0,0.00023287,3]
[385778097,1758033053065,-480.0,0.00023287,3]
[385778098,1758033053074,-1015.22,0.00023287,3]
[385778099,1758033053084,-151.0,0.00023287,7]
[385778100,1758033053093,-151.0,0.00023287,7]
[385778101,1758033053103,-480.0,0.00023287,3]
[385778102,1758033053112,-941.05,0.00023287,2]
[385778103,1758033053122,-622.92299327,0.00023287,3]
[385778104,1758033053131,-480.0,0.00023287,3]
[385778105,1758033053140,-480.0,0.00023287,3]
[385778106,1758033053149,-480.0,0.00023287,3]
[385778107,1758033053158,-480.0,0.00023287,3]
[385778108,1758033053168,-446.878969,0.00023287,7]
[385778109,1758033053180,-446.878969,0.00023287,7]
[385778110,1758033053189,-151.0,0.00023287,7]
[385778111,1758033053198,-1077.14,0.00023287,3]
[385778112,1758033053208,-151.0,0.00023287,7]
[385778113,1758033053217,-446.878969,0.00023287,7]
[385778114,1758033053227,-1203.36,0.00023287,3]
[385778115,1758033053237,-151.0,0.00023287,7]
[385778116,1758033053247,-446.878969,0.00023287,7]
[385778117,1758033053258,-836.46,0.00023287,3]
[385778118,1758033053267,-480.0,0.00023287,3]
[385778119,1758033053276,-480.0,0.00023287,3]
[385778120,1758033053285,-480.0,0.00023287,3]
[385778121,1758033053295,-480.0,0.00023287,3]
[385778122,1758033053304,-338.52890437,0.00023287,3]
[385778123,1758033053314,-480.0,0.00023287,3]
[385778124,1758033053323,-398.41525548,0.00023287,3]
[385778125,1758033053333,-480.0,0.00023287,3]
[385778126,1758033053342,-480.0,0.00023287,3]
[385778127,1758033053352,-2542.77,0.00023287,3]
[385778128,1758033053361,-480.0,0.00023287,3]
[385778129,1758033053370,-6141.36,0.00023287,3]
[385778130,1758033053380,-480.0,0.00023287,3]
[385778131,1758033053389,-480.0,0.00023287,3]
[385778132,1758033053398,-480.0,0.00023287,3]
[385778133,1758033053407,-480.0,0.00023287,3]
[385778134,1758033053416,-480.0,0.00023287,3]
[385778135,1758033053426,-10519.97,0.00023287,3]
[385778136,1758033053436,-658.35,0.00023287,3]
[385778137,1758033053445,-480.0,0.00023287,3]
[385778138,1758033053455,-480.0,0.00023287,3]
[385778139,1758033053464,-480.0,0.00023287,3]
[385778140,1758033053473,-480.0,0.00023287,3]
[385778141,1758033053483,-480.0,0.00023287,3]
[385778142,1758033053492,-480.0,0.00023287,3]
[385778143,1758033053501,-1840.34,0.00023287,3]
[385778144,1758033053511,-996.22,0.00023287,3]
[385778145,1758033053520,-480.0,0.00023287,3]
[385778146,1758033053530,-1480.9,0.00023287,3]
[385778147,1758033053539,-480.0,0.00023287,3]
[385778148,1758033053548,-480.0,0.00023287,3]
[385778149,1758033053557,-660.97,0.00023287,3]
[385778150,1758033053567,-963.27,0.00023287,3]
[385778151,1758033053576,-480.0,0.00023287,3]
[385778152,1758033053585,-1376.66,0.00023287,3]
[385778153,1758033053594,-480.0,0.00023287,3]
[385778154,1758033053603,-480.0,0.00023287,3]
[385778155,1758033053612,-1069.08,0.00023287,3]
[385778156,1758033053622,-480.0,0.00023287,3]
[385778157,1758033053631,-1089.45,0.00023287,3]
[385778158,1758033053640,-480.0,0.00023287,3]
[385778159,1758033053649,-480.0,0.00023287,3]
[385778160,1758033053659,-480.0,0.00023287,3]
[385778161,1758033053668,-191.8,0.00023287,3]
[385778162,1758033053678,-3812.15,0.00023287,3]
[385778163,1758033053687,-480.0,0.00023287,3]
[385778164,1758033053696,-480.0,0.00023287,3]
[385778165,1758033053705,-480.0,0.00023287,3]
[385778166,1758033053714,-1195.44,0.00023287,3]
[385778167,1758033053722,-480.0,0.00023287,3]
[385778168,1758033053730,-480.0,0.00023287,3]
[385778169,1758033053739,-480.0,0.00023287,3]
[385778170,1758033053747,-480.0,0.00023287,3]
[385778171,1758033053755,-480.0,0.00023287,3]
[385778172,1758033053764,-480.0,0.00023287,3]
[385778173,1758033053773,-480.0,0.00023287,3]
[385778174,1758033053782,-480.0,0.00023287,3]
[385778175,1758033053790,-553.29,0.00023287,3]
[385778176,1758033053798,-769.04,0.00023287,3]
[385778177,1758033053807,-480.0,0.00023287,3]
[385778178,1758033053817,-1200.81,0.00023287,3]
[385778179,1758033053827,-480.0,0.00023287,3]
[385778180,1758033053836,-480.0,0.00023287,3]
[385778181,1758033053846,-480.0,0.00023287,3]
[385778182,1758033053855,-480.0,0.00023287,3]
[385778183,1758033053864,-480.0,0.00023287,3]
[385778184,1758033053873,-883.33,0.00023287,3]
[385778185,1758033053882,-480.0,0.00023287,3]
[385778186,1758033053891,-480.0,0.00023287,3]
[385778187,1758033053901,-480.0,0.00023287,3]
[385778188,1758033053910,-480.0,0.00023287,3]
[385778189,1758033053919,-728.31,0.00023287,3]
[385778190,1758033053930,-480.0,0.00023287,3]
[385778191,1758033053940,-489.14508286,0.00023287,3]
[385778192,1758033053951,-2518.46,0.00023287,3]
[385778193,1758033053960,-480.0,0.00023287,3]
[385778194,1758033053969,-480.0,0.00023287,3]
[385778195,1758033053978,-480.0,0.00023287,3]
[385778196,1758033053987,-480.0,0.00023287,3]
[385778197,1758033053997,-2450.58,0.00023287,3]
[385778198,1758033054006,-1680.0,0.00023348,2]
[385778199,1758033054015,-260.0,0.00023425,2]
[385778200,1758033054025,-480.0,0.00023561,3]
[385778201,1758033054034,-170.143815,0.00023561,7]
[385778202,1758033054043,-594.82795512,0.00023561,3]
[385778203,1758033054053,-480.0,0.00023561,3]
[385778204,1758033054063,-480.0,0.00023561,3]
[385778205,1758033054072,-180.19,0.00023561,3]
[385778206,1758033054082,-480.0,0.00023561,3]
[385778207,1758033054091,-838.0,0.00023561,3]
[385778208,1758033054100,-507.33,0.00023561,3]
[385778209,1758033054110,-353.19982665,0.00023561,3]
[385778210,1758033054119,-480.0,0.00023561,3]
[385778211,1758033054129,-480.0,0.00023561,3]
[385778212,1758033054138,-480.0,0.00023561,3]
[385778213,1758033054147,-480.0,0.00023561,3]
[385778214,1758033054157,-540.2,0.00023561,3]
[385778215,1758033054166,-480.0,0.00023561,3]
[385778216,1758033054177,-480.0,0.00023561,3]
[385778217,1758033054187,-180.759646,0.00023561,7]
[385778218,1758033054196,-180.759646,0.00023561,7]
[385778219,1758033054204,-180.759646,0.00023561,7]
[385778220,1758033054213,-180.759646,0.00023561,7]
[385778221,1758033054222,-220.47,0.00023561,3]
[385778222,1758033054231,-761.92,0.00023561,3]
[385778223,1758033054240,-480.0,0.00023561,3]
[385778224,1758033054249,-521.52234792,0.00023561,3]
[385778225,1758033054260,-480.0,0.00023561,3]
[385778226,1758033054270,-480.0,0.00023561,3]
[385778227,1758033054279,-480.0,0.00023561,3]
[385778228,1758033054289,-480.0,0.00023561,3]
[385778229,1758033054299,-480.0,0.00023561,3]
[385778230,1758033054308,-1015.22,0.00023561,3]
[385778231,1758033054317,-480.0,0.00023561,3]
[385778232,1758033054327,-480.0,0.00023561,3]
[385778233,1758033054336,-480.0,0.00023561,3]
[385778234,1758033054346,-480.0,0.00023561,3]
[385778235,1758033054355,-480.0,0.00023561,3]
[385778236,1758033054365,-1077.14,0.00023561,3]
[385778237,1758033054374,-1203.36,0.00023561,3]
[385778238,1758033054383,-836.46,0.00023561,3]
[385778239,1758033054392,-480.0,0.00023561,3]
[385778240,1758033054402,-480.0,0.00023561,3]
[385778241,1758033054411,-480.0,0.00023561,3]
[385778242,1758033054420,-480.0,0.00023561,3]
[385778243,1758033054430,-357.20211021,0.00023561,3]
[385778244,1758033054439,-2542.77,0.00023561,3]
[385778245,1758033054448,-480.0,0.00023561,3]
[385778246,1758033054458,-6141.36,0.00023561,3]
[385778247,1758033054467,-480.0,0.00023561,3]
[385778248,1758033054477,-10519.97,0.00023561,3]
[385778249,1758033054486,-658.35,0.00023561,3]
[385778250,1758033054495,-480.0,0.00023561,3]
[385778251,1758033054590,-480.0,0.00023561,3]
[385778252,1758033054600,-1840.34,0.00023561,3]
[385778253,1758033054609,-996.22,0.00023561,3]
[385778254,1758033054619,-1480.9,0.00023561,3]
[385778255,1758033054628,-480.0,0.00023561,3]
[385778256,1758033054637,-660.97,0.00023561,3]
[385778257,1758033054647,-480.0,0.00023561,3]
[385778258,1758033054656,-963.27,0.00023561,3]
[385778259,1758033054666,-151.0,0.00023561,7]
[385778260,1758033054675,-151.0,0.00023561,7]
[385778261,1758033054684,-1376.66,0.00023561,3]
[385778262,1758033054693,-151.0,0.00023561,7]
[385778263,1758033054703,-480.0,0.00023561,3]
[385778264,1758033054713,-151.0,0.00023561,7]
[385778265,1758033054722,-480.0,0.00023561,3]
[385778266,1758033054731,-1069.08,0.00023561,3]
[385778267,1758033054741,-480.0,0.00023561,3]
[385778268,1758033054750,-1089.45,0.00023561,3]
[385778269,1758033054759,-480.0,0.00023561,3]
[385778270,1758033054768,-327.353288,0.00023561,7]
[385778271,1758033054778,-327.353288,0.00023561,7]
[385778272,1758033054787,-327.353288,0.00023561,7]
[385778273,1758033054796,-480.0,0.00023561,3]
[385778274,1758033054806,-327.353285,0.00023561,7]
[385778275,1758033054815,-3812.15,0.00023561,3]
[385778276,1758033054825,-480.0,0.00023561,3]
[385778277,1758033054834,-480.0,0.00023561,3]
[385778278,1758033054843,-1195.44,0.00023561,3]
[385778279,1758033054853,-480.0,0.00023561,3]
[385778280,1758033054863,-480.0,0.00023561,3]
[385778281,1758033054872,-480.0,0.00023561,3]
[385778282,1758033054882,-151.0,0.00023561,7]
[385778283,1758033054891,-151.0,0.00023561,7]
[385778284,1758033054901,-190.023749,0.00023561,7]
[385778285,1758033054910,-211.67,0.00023561,3]
[385778286,1758033054919,-620.94663024,0.00023561,3]
[385778287,1758033054929,-480.0,0.00023561,3]
[385778288,1758033054938,-480.0,0.00023561,3]
[385778289,1758033054947,-553.29,0.00023561,3]
[385778290,1758033054956,-769.04,0.00023561,3]
[385778291,1758033054965,-1200.81,0.00023561,3]
[385778292,1758033054974,-480.0,0.00023561,3]
[385778293,1758033054983,-883.33,0.00023561,3]
[385778294,1758033054992,-474.44,0.00023561,3]
[385778295,1758033055002,-179.994414,0.00023561,7]
[385778296,1758033055011,-728.31,0.00023561,3]
[385778297,1758033055021,-170.137116,0.00023561,7]
[385778298,1758033055031,-170.137116,0.00023561,7]
[385778299,1758033055040,-2518.46,0.00023561,3]
[385778300,1758033055050,-170.137116,0.00023561,7]
[385778301,1758033055060,-480.0,0.00023561,3]
[385778302,1758033055070,-170.137116,0.00023561,7]
[385778303,1758033055079,-480.0,0.00023561,3]
[385778304,1758033055088,-151.0,0.00023561,7]
[385778305,1758033055098,-2450.58,0.00023561,3]
[385778306,1758033055107,-152.29114,0.00023568,7]
[385778307,1758033055116,-163.880225,0.00023568,7]
[385778308,1758033055125,-151.0,0.00023568,7]
[385778309,1758033055134,-151.0,0.00023568,7]
[385778310,1758033055144,-177.773025,0.00023568,7]
[385778311,1758033055154,-177.773025,0.00023568,7]
[385778312,1758033055163,-151.0,0.00023568,7]
[385778313,1758033055173,-177.773025,0.00023568,7]
[385778314,1758033055186,-151.0,0.00023568,7]
[385778315,1758033055195,-177.773025,0.00023568,7]
[385778316,1758033055205,-1500.0,0.00023568,2]
[385778317,1758033055214,-1500.0,0.00023568,2]
[385778318,1758033055224,-187.0,0.00023608,2]
[385778319,1758033055233,-2000.0,0.00023616,2]
[385778320,1758033055242,-901.46908503,0.00023647,2]
[385778321,1758033055252,-244.845689,0.00023664,7]
[385778322,1758033055262,-244.845689,0.00023664,7]
[385778323,1758033055273,-244.845689,0.00023664,7]
[385778324,1758033055283,-244.845693,0.00023664,7]
[385778325,1758033055292,-410.06029,0.00023664,7]
[385778326,1758033055301,-410.06029,0.00023664,7]
[385778327,1758033055311,-410.06029,0.00023664,7]
[385778328,1758033055320,-410.060293,0.00023664,7]
[385778329,1758033055329,-178.181862,0.00023664,7]
[385778330,1758033055338,-151.0,0.00023664,7]
[385778331,1758033055347,-178.181862,0.00023664,7]
[385778332,1758033055357,-178.181862,0.00023664,7]
[385778333,1758033055366,-178.18187,0.00023664,7]
[385778334,1758033055375,-151.0,0.00023664,7]
[385778335,1758033055385,-1430.83862288,0.00023664,2]
[385778336,1758033055394,-2500.0,0.00023664,2]
[385778337,1758033055403,-168.0,0.00023698,2]
[385778338,1758033055412,-500.0,0.00023732,2]
[385778339,1758033055421,-2000.0,0.00023816,2]
[385778340,1758033055430,-2000.0,0.00023816,2]
[385778341,1758033055439,-151.0,0.00023835,7]
[385778342,1758033055450,-480.0,0.00023835,3]
[385778343,1758033055459,-480.0,0.00023835,3]
[385778344,1758033055468,-480.0,0.00023835,3]
[385778345,1758033055477,-480.0,0.00023835,3]
[385778346,1758033055486,-838.0,0.00023835,3]
[385778347,1758033055495,-507.33,0.00023835,3]
[385778348,1758033055504,-151.0,0.00023835,7]
[385778349,1758033055514,-151.0,0.00023835,7]
[385778350,1758033055523,-180.819714,0.00023835,7]
[385778351,1758033055533,-480.0,0.00023835,3]
[385778352,1758033055542,-151.0,0.00023835,7]
[385778353,1758033055551,-480.0,0.00023835,3]
[385778354,1758033055560,-480.0,0.00023835,3]
[385778355,1758033055570,-480.0,0.00023835,3]
[385778356,1758033055579,-151.0,0.00023835,7]
[385778357,1758033055588,-540.2,0.00023835,3]
[385778358,1758033055598,-151.0,0.00023835,7]
[385778359,1758033055607,-153.311625,0.00023835,7]
[385778360,1758033055616,-151.0,0.00023835,7]
[385778361,1758033055625,-480.0,0.00023835,3]
[385778362,1758033055635,-761.92,0.00023835,3]
[385778363,1758033055644,-480.0,0.00023835,3]
[385778364,1758033055653,-571.14,0.00023835,3]
[385778365,1758033055663,-480.0,0.00023835,3]
[385778366,1758033055672,-480.0,0.00023835,3]
[385778367,1758033055684,-162.086011,0.00023835,7]
[385778368,1758033055693,-151.0,0.00023835,7]
[385778369,1758033055702,-249.321416,0.00023835,7]
[385778370,1758033055712,-503.91,0.00023835,3]
[385778371,1758033055721,-1015.22,0.00023835,3]
[385778372,1758033055731,-480.0,0.00023835,3]
[385778373,1758033055740,-151.0,0.00023835,7]
[385778374,1758033055750,-202.442081,0.00023835,7]
[385778375,1758033055759,-626.5,0.00023835,3]
[385778376,1758033055768,-480.0,0.00023835,3]
[385778377,1758033055778,-480.0,0.00023835,3]
[385778378,1758033055787,-446.878969,0.00023835,7]
[385778379,1758033055797,-446.878969,0.00023835,7]
[385778380,1758033055806,-151.0,0.00023835,7]
[385778381,1758033055816,-151.0,0.00023835,7]
[385778382,1758033055825,-446.878969,0.00023835,7]
[385778383,1758033055835,-1077.14,0.00023835,3]
[385778384,1758033055844,-446.878961,0.00023835,7]
[385778385,1758033055853,-1203.36,0.00023835,3]
[385778386,1758033055862,-836.46,0.00023835,3]
[385778387,1758033055872,-480.0,0.00023835,3]
[385778388,1758033055882,-480.0,0.00023835,3]
[385778389,1758033055891,-480.0,0.00023835,3]
[385778390,1758033055901,-302.52,0.00023835,3]
[385778391,1758033055910,-2542.77,0.00023835,3]
[385778392,1758033055920,-480.0,0.00023835,3]
[385778393,1758033055930,-6141.36,0.00023835,3]
[385778394,1758033055940,-480.0,0.00023835,3]
[385778395,1758033055949,-10519.97,0.00023835,3]
[385778396,1758033055959,-658.35,0.00023835,3]
[385778397,1758033055969,-480.0,0.00023835,3]
[385778398,1758033055979,-480.0,0.00023835,3]
[385778399,1758033055988,-1840.34,0.00023835,3]
[385778400,1758033055997,-996.22,0.00023835,3]
[385778401,1758033056007,-1480.9,0.00023835,3]
[385778402,1758033056016,-480.0,0.00023835,3]
[385778403,1758033056025,-660.97,0.00023835,3]
[385778404,1758033056034,-963.27,0.00023835,3]
[385778405,1758033056044,-400.87256208,0.00023835,3]
[385778406,1758033056053,-1376.66,0.00023835,3]
[385778407,1758033056062,-480.0,0.00023835,3]
[385778408,1758033056072,-480.0,0.00023835,3]
[385778409,1758033056083,-1069.08,0.00023835,3]
[385778410,1758033056092,-1089.45,0.00023835,3]
[385778411,1758033056102,-323.22,0.00023835,3]
[385778412,1758033056111,-480.0,0.00023835,3]
[385778413,1758033056121,-3812.15,0.00023835,3]
[385778414,1758033056130,-480.0,0.00023835,3]
[385778415,1758033056139,-480.0,0.00023835,3]
[385778416,1758033056148,-1195.44,0.00023835,3]
[385778417,1758033056158,-480.0,0.00023835,3]
[385778418,1758033056167,-480.0,0.00023835,3]
[385778419,1758033056179,-480.0,0.00023835,3]
[385778420,1758033056188,-480.0,0.00023835,3]
[385778421,1758033056197,-480.0,0.00023835,3]
[385778422,1758033056290,-553.29,0.00023835,3]
[385778423,1758033056300,-769.04,0.00023835,3]
[385778424,1758033056309,-1200.81,0.00023835,3]
[385778425,1758033056318,-480.0,0.00023835,3]
[385778426,1758033056328,-883.33,0.00023835,3]
[385778427,1758033056337,-728.31,0.00023835,3]
[385778428,1758033056347,-2518.46,0.00023835,3]
[385778429,1758033056356,-480.0,0.00023835,3]
[385778430,1758033056365,-480.0,0.00023835,3]
[385778431,1758033056374,-2450.58,0.00023835,3]
[385778432,1758033056383,-160.0,0.0002384,7]
[385778433,1758033056392,-151.0,0.0002391,7]
[385778434,1758033056402,-151.0,0.0002391,7]
[385778435,1758033056410,-800.0,0.0002391,2]
[385778436,1758033056419,-155.81781823,0.00023918,7]
[385778437,1758033056428,-500.0,0.00023925,9]
[385778438,1758033056438,-360.0,0.00023973,2]
[385778439,1758033056447,-187.0,0.00023993,2]
[385778440,1758033056456,-233.29513139,0.00024,7]
[385778441,1758033056466,-237.57,0.00024,2]
[385778442,1758033056475,-720.0,0.00024012,20]
[385778443,1758033056484,-168.0,0.00024048,2]
[385778444,1758033056493,-800.0,0.00024101,2]
[385778445,1758033056502,-155.0,0.00024108,2]
[385778446,1758033056511,-150.0,0.00024109,2]
[385778447,1758033056520,-151.0,0.00024109,7]
[385778448,1758033056530,-151.0,0.00024109,7]
[385778449,1758033056539,-480.0,0.00024109,3]
[385778450,1758033056548,-480.0,0.00024109,3]
[385778451,1758033056557,-620.38,0.00024109,3]
[385778452,1758033056566,-838.0,0.00024109,3]
[385778453,1758033056575,-507.33,0.00024109,3]
[385778454,1758033056584,-440.16,0.00024109,3]
[385778455,1758033056594,-480.0,0.00024109,3]
[385778456,1758033056603,-480.0,0.00024109,3]
[385778457,1758033056613,-480.0,0.00024109,3]
[385778458,1758033056622,-540.2,0.00024109,3]
[385778459,1758033056631,-151.0,0.00024109,2]
[385778460,1758033056640,-500.0,0.00024109,2]
[385778461,1758033056650,-157.0,0.00024109,2]
[385778462,1758033056659,-151.0,0.00024109,2]
[385778463,1758033056668,-500.0,0.00024109,2]
[385778464,1758033056678,-151.0,0.00024109,2]
[385778465,1758033056687,-151.0,0.00024109,2]
[385778466,1758033056697,-157.29320355,0.00024109,2]
[385778467,1758033056706,-157.30698964,0.00024109,2]
[385778468,1758033056716,-157.0,0.00024109,2]
[385778469,1758033056725,-157.25921215,0.00024109,2]
[385778470,1758033056734,-180.759646,0.00024109,7]
[385778471,1758033056743,-180.759646,0.00024109,7]
[385778472,1758033056753,-180.759646,0.00024109,7]
[385778473,1758033056762,-180.759642,0.00024109,7]
[385778474,1758033056772,-761.92,0.00024109,3]
[385778475,1758033056782,-480.0,0.00024109,3]
[385778476,1758033056791,-480.0,0.00024109,3]
[385778477,1758033056800,-626.68233976,0.00024109,3]
[385778478,1758033056810,-1015.22,0.00024109,3]
[385778479,1758033056819,-480.0,0.00024109,3]
[385778480,1758033056829,-480.0,0.00024109,3]
[385778481,1758033056839,-480.0,0.00024109,3]
[385778482,1758033056849,-1077.14,0.00024109,3]
[385778483,1758033056859,-1203.36,0.00024109,3]
[385778484,1758033056867,-836.46,0.00024109,3]
[385778485,1758033056877,-480.0,0.00024109,3]
[385778486,1758033056886,-242.74,0.00024109,3]
[385778487,1758033056896,-263.80779639,0.00024109,2]
[385778488,1758033056905,-151.0,0.00024109,2]
[385778489,1758033056914,-480.0,0.00024109,3]
[385778490,1758033056923,-151.0,0.00024109,2]
[385778491,1758033056933,-183.60664321,0.00024109,2]
[385778492,1758033056943,-732.0,0.00024109,2]
[385778493,1758033056952,-2542.77,0.00024109,3]
[385778494,1758033056962,-480.0,0.00024109,3]
[385778495,1758033056971,-6141.36,0.00024109,3]
[385778496,1758033056981,-151.0,0.00024109,2]
[385778497,1758033056991,-151.0,0.00024109,2]
[385778498,1758033057000,-210.20786869,0.00024109,2]
[385778499,1758033057010,-238.36251113,0.00024109,2]
[385778500,1758033057019,-151.0,0.00024109,2]
[385778501,1758033057030,-230.61141933,0.00024109,2]
[385778502,1758033057048,-480.0,0.00024109,3]
[385778503,1758033057062,-151.0,0.00024109,2]
[385778504,1758033057077,-151.0,0.00024109,2]
[385778505,1758033057093,-10519.97,0.00024109,3]
[385778506,1758033057109,-658.35,0.00024109,3]
[385778507,1758033057126,-480.0,0.00024109,3]
[385778508,1758033057140,-480.0,0.00024109,3]
[385778509,1758033057155,-1840.34,0.00024109,3]
[385778510,1758033057170,-996.22,0.00024109,3]
[385778511,1758033057188,-1480.9,0.00024109,3]
[385778512,1758033057200,-480.0,0.00024109,3]
[385778513,1758033057214,-660.97,0.00024109,3]
[385778514,1758033057230,-963.27,0.00024109,3]
[385778515,1758033057247,-1376.66,0.00024109,3]
[385778516,1758033057264,-177.95,0.00024109,3]
[385778517,1758033057276,-480.0,0.00024109,3]
[385778518,1758033057287,-1069.08,0.00024109,3]
[385778519,1758033057304,-1089.45,0.00024109,3]
[385778520,1758033057318,-480.0,0.00024109,3]
[385778521,1758033057331,-3812.15,0.00024109,3]
[385778522,1758033057345,-480.0,0.00024109,3]
[385778523,1758033057357,-480.0,0.00024109,3]
[385778524,1758033057370,-151.0,0.00024109,2]
[385778525,1758033057383,-1195.44,0.00024109,3]
[385778526,1758033057396,-480.0,0.00024109,3]
[385778527,1758033057408,-480.0,0.00024109,3]
[385778528,1758033057421,-480.0,0.00024109,3]
[385778529,1758033057435,-157.0,0.00024109,2]
[385778530,1758033057447,-151.0,0.00024109,2]
[385778531,1758033057460,-151.0,0.00024109,2]
[385778532,1758033057473,-480.0,0.00024109,3]
[385778533,1758033057486,-480.0,0.00024109,3]
[385778534,1758033057498,-553.29,0.00024109,3]
[385778535,1758033057510,-769.04,0.00024109,3]
[385778536,1758033057523,-1200.81,0.00024109,3]
[385778537,1758033057536,-480.0,0.00024109,3]
[385778538,1758033057548,-883.33,0.00024109,3]
[385778539,1758033057560,-728.31,0.00024109,3]
[385778540,1758033057573,-2518.46,0.00024109,3]
[385778541,1758033057586,-480.0,0.00024109,3]
[385778542,1758033057598,-561.66,0.00024109,3]
[385778543,1758033057611,-2450.58,0.00024109,3]
[385778544,1758033057623,-1500.0,0.00024116,2]
[385778545,1758033057636,-2000.0,0.00024116,2]
[385778546,1758033057648,-151.0,0.00024133,7]
[385778547,1758033057660,-151.0,0.00024133,7]
[385778548,1758033057673,-151.0,0.00024133,7]
[385778549,1758033057686,-500.0,0.00024141,9]
[385778550,1758033057699,-168.0,0.00024157,2]
[385778551,1758033057711,-2500.0,0.00024164,2]
[385778552,1758033057724,-28512.39,0.000242,7]
[385778553,1758033057737,-2696.93213312,0.00024212,2]
[385778554,1758033057750,-3320.78552182,0.00024283,2]
[385778555,1758033057763,-23691.25,0.000243,2]